[Event "36th German Seniors-ch-65 2024"]
[Site "Bad Wildungen"]
[Date "2024.08.27"]
[Round "5.21"]
[White "Matthey, Harald"]
[Black "Krien, Hartmut"]
[Result "0-1"]
[ECO "B18"]
[WhiteElo "2062"]
[BlackElo "1930"]
[Annotator "TA"]
[PlyCount "73"]
[EventDate "2024.08.22"]
[EventType "swiss"]
[EventCountry "GER"]
[SourceTitle "playchess.com"]
[Source "ChessBase"]
[SourceQuality "1"]
[TimeControl "40/5400+30:1800+30"]

{[%evp 15,73,76,63,51,49,14,156,28,40,10,10,12,20,20,214,212,231,222,287,209,207,200,193,193,241,243,249,257,259,250,228,245,311,205,213,216,310,239,237,218,242,239,236,234,370,367,364,356,394,385,413,397,583,585,602,587,581,570,572,571]} 1. e4 {[%emt 0:00:02]} c6 {[%emt 0:00:16]} 2. d4 {[%emt 0:00:35]} d5 {[%emt 0:00:16]} 3. Nc3 {[%emt 0:00:23][%cal Bb1c3,Bc3e4,Be4g3][%mdl 32]} dxe4 {[%emt 0:00:11]} 4. Nxe4 {[%emt 0:00:11]} Bf5 {[%emt 0:00:14]} 5. Ng3 {[%emt 0:00:15]} Bg6 {[%emt 0:00:14]} 6. Nh3 {[%emt 0:01:22]} h6 {[%emt 0:02:20]} 7. Nf4 {[%emt 0:02:14]} Bh7 {[%emt 0:01:00]} 8. Bc4 {[%emt 0:01:29]} Nf6 {[%emt 0:01:49]} 9. c3 {[%emt 0:00:36]} e6 {[%emt 0:01:34]} 10. O-O {[%emt 0:01:21] Threatening Ngh5.} Be7 {[%emt 0:02:16] [#]} (10... Bd6 $11) 11. Re1 {[%emt 0:15:57]} ({White must play} 11. Bxe6 $1 $16 {Strongly threatening Bf5.} fxe6 12. Nxe6) 11... O-O $1 $11 {[%emt 0:00:42]} 12. a4 {[%emt 0:05:52][%cal Ba2a4,Ba4a5][%mdl 32]} Nbd7 {[%emt 0:02:18] [#]} 13. Bxe6 $1 {[%emt 0:12:58]} fxe6 {[%emt 0:09:23]} 14. Nxe6 {[%emt 0:00:12]} Qb6 {[%emt 0:00:32] [#] A mistake that costs the game.} (14... Qe8 $11 {and Black stays safe.}) 15. a5 $1 $18 {[%emt 0:02:01]} (15. Nxf8 Bxf8 16. a5 Qb5 $16) (15. Nxg7 Rf7 16. Ne6 (16. Bxh6 Bf8 $14) 16... Bd6 $14) 15... Qb5 {[%emt 0:04:49][%cal Oe7d6]} 16. Nc7 $1 {[%emt 0:00:13]} ({Stronger than} 16. Nxf8 Bxf8 17. b3 Qd5 $11) 16... Qd3 {[%emt 0:00:48]} 17. Qxd3 {[%emt 0:00:58]} ({Weaker is} 17. Nxa8 Qxd1 18. Rxd1 Rxa8 $15) 17... Bxd3 {[%emt 0:00:08]} 18. Rxe7 {[%emt 0:00:33]} Rac8 {[%emt 0:02:21]} 19. Bf4 {[%emt 0:06:01]} g5 {[%emt 0:05:38]} (19... Rf7 $142 20. Rxf7 Kxf7) 20. Bd6 {[%emt 0:06:24]} Rf7 {[%emt 0:02:45]} 21. Rae1 {[%emt 0:41:23]} ({Don't do} 21. Re3 Bg6 22. h3 Nf8 $18) 21... Nf8 {[%emt 0:01:21]} 22. Rxf7 {[%emt 0:00:00]} Kxf7 {[%emt 0:00:33]} 23. Re7+ {[%emt 0:00:00]} Kg6 {[%emt 0:01:06]} 24. Ne6 {[%emt 0:00:00] Prevents Rd8.} Nxe6 {[%emt 0:02:44]} 25. Rxe6 {[%emt 0:00:00]} Re8 {[%emt 0:00:25]} (25... Bc4 {was necessary.} 26. Re5 Rh8) 26. Rxe8 {[%emt 0:00:00]} Nxe8 {[%emt 0:00:03][%mdl 4096] Endgame. KBN-KBN} 27. Be5 {[%emt 0:00:00]} b6 {[%emt 0:01:05]} 28. axb6 {[%emt 0:00:00]} axb6 {[%emt 0:00:07]} 29. f3 {[%emt 0:00:00]} Nf6 {[%emt 0:04:42]} (29... Bc4 {was called for.} 30. Nf1 Ba6) 30. Bxf6 {[%emt 0:00:00]} Kxf6 {[%emt 0:00:03] KB-KN} 31. Kf2 {[%emt 0:00:00]} Ke6 {[%emt 0:02:09]} 32. Ke3 {[%emt 0:00:00]} Bc4 {[%emt 0:02:54]} 33. Ne4 {[%emt 0:00:00] g4 is the strong threat.} Bf1 {[%emt 0:01:09]} (33... Bb3 {keeps fighting.} 34. Ke2 Bc4+ 35. Ke3 Bb3) 34. g4 {[%emt 0:00:00] White is clearly winning.} Bc4 {[%emt 0:01:15]} 35. Ng3 {[%emt 0:00:00]} Kf6 {[%emt 0:01:09]} 36. Nf5 {[%emt 0:00:00]} h5 {[%emt 0:02:43]} 37. Nd6 {[%emt 0:00:00][%mdl 32768] Weighted Error Value: White=0.20 (precise) /Black=0.47.  Loses game:     	---       	Black=1      Mistake:       	White=1     	Black=5      Inaccurate:     	White=3     	---        OK:         	White=14    	Black=8      Best:        	White=1     	---        Strong:       	White=2     	Black=1     . Loss on time!?} 0-1

[Event "36th German Seniors-ch-65 2024"]
[Site "Bad Wildungen"]
[Date "2024.08.27"]
[Round "5.22"]
[White "Chevelevitch, Evgueni"]
[Black "Heid, Michael"]
[Result "1/2-1/2"]
[ECO "B19"]
[WhiteElo "2334"]
[BlackElo "1968"]
[Annotator "TA"]
[PlyCount "51"]
[EventDate "2024.08.22"]
[EventType "swiss"]
[EventCountry "GER"]
[SourceTitle "playchess.com"]
[Source "ChessBase"]
[SourceQuality "1"]
[TimeControl "40/5400+30:1800+30"]

{[%evp 20,51,9,4,10,16,4,0,10,-5,-19,-16,-8,-25,-24,-20,-20,-47,-52,-52,-31,-62,-11,-14,-11,-8,-6,-8,7,17,43,54,48,-54]} 1. e4 {[%emt 0:00:03]} c6 {[%emt 0:00:04]} 2. d4 {[%emt 0:00:17]} d5 {[%emt 0:00:03]} 3. Nc3 {[%emt 0:00:42]} dxe4 {[%emt 0:00:11]} 4. Nxe4 {[%emt 0:00:01]} Bf5 {[%emt 0:00:03]} 5. Ng3 {[%emt 0:00:18]} Bg6 {[%emt 0:00:01]} 6. h4 {[%emt 0:00:23]} h6 {[%emt 0:00:04]} 7. Nf3 {[%emt 0:00:22]} Nd7 {[%emt 0:00:02]} 8. h5 {[%emt 0:00:20]} Bh7 {[%emt 0:00:02]} 9. Bd3 {[%emt 0:00:08]} Bxd3 {[%emt 0:00:03]} 10. Qxd3 {[%emt 0:00:06]} e6 {[%emt 0:00:05]} 11. Bf4 {[%emt 0:01:15]} Qa5+ {[%emt 0:00:13]} 12. Bd2 {[%emt 0:00:09]} Bb4 {[%emt 0:00:24]} 13. Ne4 {[%emt 0:07:56]} Bxd2+ {[%emt 0:02:42] The position is equal.} 14. Nfxd2 {[%emt 0:00:14]} Ngf6 $1 {[%emt 0:02:11]} 15. Nd6+ {[%emt 0:01:55]} Ke7 {[%emt 0:00:01]} 16. N6c4 {[%emt 0:00:12]} Qc7 {[%emt 0:00:31]} 17. O-O-O {[%emt 0:06:00][%cal Of2f4]} Rhd8 {[%emt 0:00:52]} 18. g3 {[%emt 0:34:58]} c5 {[%emt 0:04:33]} 19. Nf3 {[%emt 0:06:52]} b5 {[%emt 0:05:41]} 20. Ne3 {[%emt 0:00:29]} cxd4 {[%emt 0:01:13]} (20... Qa5 $15 21. Kb1 c4) 21. Nxd4 $11 {[%emt 0:01:07]} a6 {[%emt 0:01:10]} 22. Qa3+ {[%emt 0:06:00]} Nc5 {[%emt 0:04:31]} 23. Nb3 {[%emt 0:01:17]} Rxd1+ {[%emt 0:02:38]} 24. Rxd1 {[%emt 0:00:08]} Rc8 {[%emt 0:00:19]} 25. Nxc5 {[%emt 0:06:44]} Qxc5 {[%emt 0:00:07]} 26. Qxc5+ {[%emt 0:00:04] Weighted Error Value: White=0.06 (flawless) /Black=0.10 (very precise) .  Mistake:       	White=1     	Black=1      Inaccurate:     	White=1     	Black=1      OK:         	White=6     	Black=4      Best:        	White=1     	Black=2      Strong:       	---       	Black=1} ({White should play} 26. Qxa6 $14 b4 27. Qd3) 1/2-1/2

[Event "36th German Seniors-ch-65 2024"]
[Site "Bad Wildungen"]
[Date "2024.08.28"]
[Round "6.1"]
[White "Zimmermann, Rolf"]
[Black "Buchal, Stephan"]
[Result "0-1"]
[ECO "B07"]
[WhiteElo "2107"]
[BlackElo "2215"]
[Annotator "RC"]
[PlyCount "48"]
[EventDate "2024.08.22"]
[EventType "swiss"]
[EventCountry "GER"]
[SourceTitle "playchess.com"]
[Source "ChessBase"]
[SourceQuality "1"]
[TimeControl "40/5400+30:1800+30"]

1. d4 {[%emt 0:00:11]} g6 {[%emt 0:01:11]} 2. e4 {[%emt 0:05:27]} Bg7 {[%emt 0:00:27]} 3. f4 {[%emt 0:02:58]} d6 {[%emt 0:01:00]} 4. Nf3 {[%emt 0:00:22]} Nf6 {[%emt 0:00:48]} 5. Bd3 {[%emt 0:01:30]} Nc6 {[%emt 0:10:09]} 6. c3 {[%emt 0:04:39]} Bg4 {[%emt 0:06:00]} 7. d5 {[%emt 0:05:03]} Nb8 {[%emt 0:00:24]} 8. h3 {[%emt 0:00:24]} Bxf3 {[%emt 0:00:10]} 9. Qxf3 {[%emt 0:00:10]} O-O {[%emt 0:04:26]} 10. O-O {[%emt 0:00:45]} c6 {[%emt 0:02:16]} 11. dxc6 {[%emt 0:02:59]} Nxc6 {[%emt 0:01:41]} 12. b3 {[%emt 0:01:10]} Nd7 {[%emt 0:12:45]} 13. Bb2 {[%emt 0:01:28]} Nb4 {[%emt 0:04:03]} 14. Rf2 {[%emt 0:04:33]} Qb6 {[%emt 0:04:40]} 15. Na3 {[%emt 0:08:02]} Nxd3 {[%emt 0:02:08]} 16. Qxd3 {[%emt 0:00:04]} Rac8 {[%emt 0:06:28]} 17. Nc4 {[%emt 0:06:31]} Qc6 {[%emt 0:01:37]} 18. Na5 {[%emt 0:04:23]} Qb6 {[%emt 0:01:42]} 19. Nc4 {[%emt 0:00:34]} Qc6 {[%emt 0:00:03]} 20. Na5 {[%emt 0:00:25]} Qc7 {[%emt 0:00:53]} 21. Nc4 {[%emt 0:04:53]} Nc5 {[%emt 0:03:58]} 22. Qe2 {[%emt 0:07:00]} Na4 {[%emt 0:04:01]} 23. Nxd6 {[%emt 0:10:38]} Nxc3 {[%emt 0:02:14]} 24. Bxc3 {[%emt 0:01:50]} Qxc3 {[%emt 0:00:20]} 0-1

[Event "36th German Seniors-ch-65 2024"]
[Site "Bad Wildungen"]
[Date "2024.08.28"]
[Round "6.2"]
[White "Rosen, Willy"]
[Black "Podat, Vladimir"]
[Result "1/2-1/2"]
[ECO "C00"]
[WhiteElo "2091"]
[BlackElo "2157"]
[Annotator "RC"]
[PlyCount "67"]
[EventDate "2024.08.22"]
[EventType "swiss"]
[EventCountry "GER"]
[SourceTitle "playchess.com"]
[Source "ChessBase"]
[SourceQuality "1"]
[TimeControl "40/5400+30:1800+30"]

1. e4 {[%emt 0:00:04]} e5 {[%emt 0:00:28]} 2. Nf3 {[%emt 0:00:07]} Nc6 {[%emt 0:00:10]} 3. d3 {[%emt 0:00:08]} Nf6 {[%emt 0:00:45]} 4. c3 {[%emt 0:00:10]} d5 {[%emt 0:01:46]} 5. Nbd2 {[%emt 0:00:09]} Be7 {[%emt 0:00:16]} 6. Be2 {[%emt 0:00:14]} O-O {[%emt 0:00:10]} 7. O-O {[%emt 0:00:12]} a5 {[%emt 0:00:13]} 8. b3 {[%emt 0:04:11]} Re8 {[%emt 0:02:17]} 9. Bb2 {[%emt 0:00:21]} Bc5 {[%emt 0:11:03]} 10. a3 {[%emt 0:04:38]} d4 {[%emt 0:00:25]} 11. cxd4 {[%emt 0:10:29]} Nxd4 {[%emt 0:00:07]} 12. Nxd4 {[%emt 0:00:10]} Bxd4 {[%emt 0:00:07]} 13. Bxd4 {[%emt 0:00:08]} Qxd4 {[%emt 0:00:27]} 14. Rc1 {[%emt 0:03:01]} c6 {[%emt 0:02:17]} 15. Kh1 {[%emt 0:08:46]} Be6 {[%emt 0:01:36]} 16. Qc2 {[%emt 0:04:25]} Qd6 {[%emt 0:01:28]} 17. Qc5 {[%emt 0:00:17]} Qxc5 {[%emt 0:00:06]} 18. Rxc5 {[%emt 0:00:12]} Nd7 {[%emt 0:00:04]} 19. Rc3 {[%emt 0:00:41]} c5 {[%emt 0:00:16]} 20. Rb1 {[%emt 0:11:54]} g6 {[%emt 0:04:28]} 21. h3 {[%emt 0:00:16]} h5 {[%emt 0:00:06]} 22. g4 {[%emt 0:04:22]} hxg4 {[%emt 0:00:14]} 23. Bxg4 {[%emt 0:00:19]} Kg7 {[%emt 0:00:39]} 24. Kg2 {[%emt 0:00:41]} Bxg4 {[%emt 0:04:10]} 25. hxg4 {[%emt 0:00:02]} Rh8 {[%emt 0:00:05]} 26. b4 {[%emt 0:01:01]} axb4 {[%emt 0:06:21]} 27. axb4 {[%emt 0:47:02]} Rhc8 {[%emt 1:03:56]} 28. Kf3 {[%emt 0:00:00]} cxb4 {[%emt 0:00:00]} 29. Rxc8 {[%emt 0:00:00]} Rxc8 {[%emt 0:00:00]} 30. Rxb4 {[%emt 0:00:00]} Rc3 {[%emt 0:00:00]} 31. Ke2 {[%emt 0:00:00]} Nc5 {[%emt 0:00:00]} 32. Rc4 {[%emt 0:00:00]} Rxc4 {[%emt 0:00:00]} 33. dxc4 {[%emt 0:00:00]} Kf6 {[%emt 0:00:00]} 34. Ke3 {[%emt 0:03:30]} 1/2-1/2

[Event "36th German Seniors-ch-65 2024"]
[Site "Bad Wildungen"]
[Date "2024.08.28"]
[Round "6.4"]
[White "Juhnke, Juergen"]
[Black "Krueger, Erich"]
[Result "1-0"]
[ECO "B15"]
[WhiteElo "2259"]
[BlackElo "2085"]
[Annotator "RC"]
[PlyCount "117"]
[EventDate "2024.08.22"]
[EventType "swiss"]
[EventCountry "GER"]
[SourceTitle "playchess.com"]
[Source "ChessBase"]
[SourceQuality "1"]
[TimeControl "40/5400+30:1800+30"]

1. e4 {[%emt 0:00:03]} c6 {[%emt 0:00:12]} 2. d4 {[%emt 0:00:05]} d5 {[%emt 0:00:08]} 3. Nc3 {[%emt 0:00:06]} dxe4 {[%emt 0:00:19]} 4. Nxe4 {[%emt 0:00:01]} Nf6 {[%emt 0:00:08]} 5. Nxf6+ {[%emt 0:00:05]} exf6 {[%emt 0:00:14]} 6. Bc4 {[%emt 0:01:03]} Bd6 {[%emt 0:00:45]} 7. Ne2 {[%emt 0:00:36]} Qc7 {[%emt 0:02:10]} 8. Ng3 {[%emt 0:04:17]} O-O {[%emt 0:02:22]} 9. O-O {[%emt 0:00:36]} Nd7 {[%emt 0:03:16]} 10. Re1 {[%emt 0:12:12]} Nb6 {[%emt 0:02:15]} 11. Bb3 {[%emt 0:00:19]} Bd7 {[%emt 0:10:53]} 12. c4 {[%emt 0:02:26]} c5 {[%emt 0:00:31]} 13. dxc5 {[%emt 0:14:13]} Bxc5 {[%emt 0:00:18]} 14. Qf3 {[%emt 0:03:36]} Qc6 {[%emt 0:15:58]} 15. Qxc6 {[%emt 0:03:54]} Bxc6 {[%emt 0:00:10]} 16. Be3 {[%emt 0:00:27]} Nd7 {[%emt 0:02:45]} 17. Nf5 {[%emt 0:03:51]} Bb4 {[%emt 0:03:01]} 18. Red1 {[%emt 0:00:42]} Rfd8 {[%emt 0:03:44]} 19. a3 {[%emt 0:01:17]} Bf8 {[%emt 0:00:52]} 20. Nd4 {[%emt 0:05:10]} Be4 {[%emt 0:03:57]} 21. Ba2 {[%emt 0:05:37]} a5 {[%emt 0:02:13]} 22. Bb1 {[%emt 0:08:55]} Bxb1 {[%emt 0:00:26]} 23. Raxb1 {[%emt 0:00:07]} a4 {[%emt 0:00:26]} 24. Nb5 {[%emt 0:02:20]} Ne5 {[%emt 0:11:25]} 25. c5 {[%emt 0:09:57]} g5 {[%emt 0:11:10]} 26. Nd6 {[%emt 0:01:19]} Rd7 {[%emt 0:01:07]} 27. Ne4 {[%emt 0:00:42]} Kg7 {[%emt 0:01:05]} 28. Rxd7 {[%emt 0:00:49]} Nxd7 {[%emt 0:00:24]} 29. Rd1 {[%emt 0:00:35]} Ne5 {[%emt 0:00:38]} 30. Nd6 {[%emt 0:01:26]} Kg6 {[%emt 0:05:44]} 31. Rd4 {[%emt 0:03:16]} Nc6 {[%emt 0:02:32]} 32. Rd2 {[%emt 0:00:27]} Rb8 {[%emt 0:02:29]} 33. Nc4 {[%emt 0:03:26]} Ra8 {[%emt 0:03:37]} 34. Rd7 {[%emt 0:00:50]} Ra7 {[%emt 0:02:00]} 35. g4 {[%emt 0:00:27]} b5 {[%emt 0:02:02]} 36. Rxa7 {[%emt 0:02:29]} Nxa7 {[%emt 0:00:11]} 37. Nd6 {[%emt 0:00:22]} h5 {[%emt 0:03:03]} 38. h3 {[%emt 0:00:58]} hxg4 {[%emt 0:00:24]} 39. hxg4 {[%emt 0:00:02]} Be7 {[%emt 0:01:55]} 40. Kf1 {[%emt 0:00:32]} Kg7 {[%emt 0:01:18]} 41. Ke2 {[%emt 0:30:39]} Kf8 {[%emt 0:30:34]} 42. Kd3 {[%emt 0:00:55]} Bxd6 {[%emt 0:00:00]} 43. cxd6 {[%emt 0:00:00]} Nc6 {[%emt 0:00:00]} 44. Ke4 {[%emt 0:00:00]} Ke8 {[%emt 0:00:00]} 45. Kf5 {[%emt 0:00:00]} Ne5 {[%emt 0:00:00]} 46. Bd4 {[%emt 0:00:00]} Nc4 {[%emt 0:00:00]} 47. Kxf6 {[%emt 0:00:00]} Nxd6 {[%emt 0:00:00]} 48. Kxg5 {[%emt 0:00:00]} Nb7 {[%emt 0:00:00]} 49. f4 {[%emt 0:00:00]} Nd8 {[%emt 0:00:00]} 50. f5 {[%emt 0:00:00]} Nc6 {[%emt 0:00:00]} 51. Bc3 {[%emt 0:00:00]} Ne7 {[%emt 0:00:00]} 52. Kf6 {[%emt 0:00:00]} Nd5+ {[%emt 0:00:00]} 53. Ke5 {[%emt 0:00:00]} Ne3 {[%emt 0:00:00]} 54. g5 {[%emt 0:00:00]} Ke7 {[%emt 0:00:00]} 55. Bb4+ {[%emt 0:00:00]} Ke8 {[%emt 0:00:00]} 56. g6 {[%emt 0:00:00]} Ng4+ {[%emt 0:00:00]} 57. Kf4 {[%emt 0:00:00]} Nh6 {[%emt 0:00:00]} 58. Kg5 {[%emt 0:00:00]} Ng8 {[%emt 0:00:00]} 59. f6 {[%emt 0:18:51]} 1-0

[Event "36th German Seniors-ch-65 2024"]
[Site "Bad Wildungen"]
[Date "2024.08.28"]
[Round "6.5"]
[White "Lutz, Albert"]
[Black "Heinig, Wolfram"]
[Result "1/2-1/2"]
[ECO "A30"]
[WhiteElo "2070"]
[BlackElo "2215"]
[Annotator "RC"]
[PlyCount "78"]
[EventDate "2024.08.22"]
[EventType "swiss"]
[EventCountry "GER"]
[SourceTitle "playchess.com"]
[Source "ChessBase"]
[SourceQuality "1"]
[TimeControl "40/5400+30:1800+30"]

1. Nf3 {[%emt 0:00:05]} Nf6 {[%emt 0:00:12]} 2. c4 {[%emt 0:00:14]} c5 {[%emt 0:00:21]} 3. Nc3 {[%emt 0:00:13]} b6 {[%emt 0:02:17]} 4. g3 {[%emt 0:01:14]} Bb7 {[%emt 0:00:07]} 5. Bg2 {[%emt 0:00:10]} e6 {[%emt 0:00:44]} 6. O-O {[%emt 0:00:44]} Be7 {[%emt 0:00:14]} 7. d3 {[%emt 0:01:16]} d5 {[%emt 0:02:53]} 8. cxd5 {[%emt 0:07:58]} Nxd5 {[%emt 0:00:57]} 9. Re1 {[%emt 0:09:56]} Nc6 {[%emt 0:04:15]} 10. Nxd5 {[%emt 0:00:48]} Qxd5 {[%emt 0:06:56]} 11. Bf4 {[%emt 0:00:59]} Qd7 {[%emt 0:06:45]} 12. Ne5 {[%emt 0:06:18]} Nxe5 {[%emt 0:00:50]} 13. Bxb7 {[%emt 0:00:14]} Qxb7 {[%emt 0:00:09]} 14. Bxe5 {[%emt 0:00:11]} O-O {[%emt 0:04:42]} 15. Qa4 {[%emt 0:01:51]} Rfd8 {[%emt 0:06:48]} 16. b3 {[%emt 0:02:05]} Qd5 {[%emt 0:02:02]} 17. Bb2 {[%emt 0:00:26]} Qf5 {[%emt 0:00:54]} 18. Qf4 {[%emt 0:07:44]} Qxf4 {[%emt 0:03:44]} 19. gxf4 {[%emt 0:00:02]} f5 {[%emt 0:04:21]} 20. Kg2 {[%emt 0:00:40]} Kf7 {[%emt 0:00:08]} 21. Kf3 {[%emt 0:00:27]} Bf6 {[%emt 0:04:29]} 22. Bxf6 {[%emt 0:01:08]} Kxf6 {[%emt 0:00:03]} 23. Rac1 {[%emt 0:00:12]} Rd4 {[%emt 0:02:18]} 24. Rc4 {[%emt 0:00:24]} Rad8 {[%emt 0:00:27]} 25. Rec1 {[%emt 0:00:40]} a5 {[%emt 0:17:32]} 26. a4 {[%emt 0:01:26]} e5 {[%emt 0:01:19]} 27. fxe5+ {[%emt 0:00:34]} Kxe5 {[%emt 0:00:02]} 28. h4 {[%emt 0:03:57]} g6 {[%emt 0:01:05]} 29. Rg1 {[%emt 0:05:54]} R4d6 {[%emt 0:06:31]} 30. Ke3 {[%emt 0:01:16]} Kf6 {[%emt 0:07:21]} 31. Kf3 {[%emt 0:03:03]} h6 {[%emt 0:00:32]} 32. Rh1 {[%emt 0:01:05]} Ke5 {[%emt 0:01:18]} 33. Rg1 {[%emt 0:00:49]} Rg8 {[%emt 0:00:31]} 34. Rh1 {[%emt 0:02:13]} g5 {[%emt 0:01:46]} 35. hxg5 {[%emt 0:00:10]} hxg5 {[%emt 0:00:02]} 36. Rh5 {[%emt 0:01:04]} Rgg6 {[%emt 0:01:14]} 37. Kg3 {[%emt 0:04:16]} Rd4 {[%emt 0:08:36]} 38. Rh8 {[%emt 0:03:24]} Rdd6 {[%emt 0:01:56]} 39. Rh5 {[%emt 0:01:15]} Rd4 {[%emt 0:01:46]} 1/2-1/2

[Event "36th German Seniors-ch-65 2024"]
[Site "Bad Wildungen"]
[Date "2024.08.28"]
[Round "6.6"]
[White "Ellenberg, Ekkehard"]
[Black "Vatter, Hans-Joachim"]
[Result "1/2-1/2"]
[ECO "C00"]
[WhiteElo "1998"]
[BlackElo "2212"]
[Annotator "RC"]
[PlyCount "30"]
[EventDate "2024.08.22"]
[EventType "swiss"]
[EventCountry "GER"]
[SourceTitle "playchess.com"]
[Source "ChessBase"]
[SourceQuality "1"]
[TimeControl "40/5400+30:1800+30"]

1. Nf3 {[%emt 0:00:09]} c5 {[%emt 0:01:21]} 2. d3 {[%emt 0:02:04]} Nc6 {[%emt 0:01:59]} 3. Nbd2 {[%emt 0:01:16]} e6 {[%emt 0:05:52]} 4. g3 {[%emt 0:04:38]} Nf6 {[%emt 0:01:19]} 5. Bg2 {[%emt 0:01:48]} Be7 {[%emt 0:02:18]} 6. O-O {[%emt 0:02:02]} Qc7 {[%emt 0:06:57]} 7. e4 {[%emt 0:04:07]} d5 {[%emt 0:13:12]} 8. Re1 {[%emt 0:08:55]} h6 {[%emt 0:08:07]} 9. c3 {[%emt 0:05:38]} b6 {[%emt 0:01:03]} 10. Nf1 {[%emt 0:03:57]} dxe4 {[%emt 0:13:02]} 11. dxe4 {[%emt 0:00:15]} e5 {[%emt 0:00:01]} 12. Qc2 {[%emt 0:01:01]} Ba6 {[%emt 0:02:48]} 13. Qa4 {[%emt 0:03:29]} Bb7 {[%emt 0:02:19]} 14. Ne3 {[%emt 0:01:43]} O-O-O {[%emt 0:02:29]} 15. Nh4 {[%emt 0:01:25]} g6 {[%emt 0:11:46]} 1/2-1/2

[Event "36th German Seniors-ch-65 2024"]
[Site "Bad Wildungen"]
[Date "2024.08.28"]
[Round "6.7"]
[White "Behrens, Harald"]
[Black "Ruether, Rudolf"]
[Result "1/2-1/2"]
[ECO "E05"]
[WhiteElo "2206"]
[BlackElo "2065"]
[Annotator "RC"]
[PlyCount "52"]
[EventDate "2024.08.22"]
[EventType "swiss"]
[EventCountry "GER"]
[SourceTitle "playchess.com"]
[Source "ChessBase"]
[SourceQuality "1"]
[TimeControl "40/5400+30:1800+30"]

1. d4 {[%emt 0:00:04]} Nf6 {[%emt 0:00:12]} 2. Nf3 {[%emt 0:00:06]} e6 {[%emt 0:00:37]} 3. g3 {[%emt 0:00:07]} d5 {[%emt 0:00:20]} 4. Bg2 {[%emt 0:00:33]} Be7 {[%emt 0:00:13]} 5. O-O {[%emt 0:00:20]} O-O {[%emt 0:00:16]} 6. c4 {[%emt 0:00:04]} dxc4 {[%emt 0:01:09]} 7. Qa4 {[%emt 0:00:21]} a6 {[%emt 0:01:59]} 8. Qxc4 {[%emt 0:01:18]} b5 {[%emt 0:00:39]} 9. Qc2 {[%emt 0:00:59]} Bb7 {[%emt 0:00:20]} 10. Nc3 {[%emt 0:08:06]} Nbd7 {[%emt 0:05:06]} 11. a3 {[%emt 0:03:15]} c5 {[%emt 0:09:31]} 12. dxc5 {[%emt 0:00:52]} Bxc5 {[%emt 0:00:09]} 13. Bg5 {[%emt 0:03:43]} h6 {[%emt 0:21:31]} 14. Bxf6 {[%emt 0:01:42]} Nxf6 {[%emt 0:00:11]} 15. Rad1 {[%emt 0:01:05]} Qb6 {[%emt 0:02:16]} 16. Ne5 {[%emt 0:05:57]} Bxg2 {[%emt 0:03:21]} 17. Kxg2 {[%emt 0:00:08]} Rfd8 {[%emt 0:00:25]} 18. e3 {[%emt 0:06:01]} Rac8 {[%emt 0:04:33]} 19. Rxd8+ {[%emt 0:04:00]} Rxd8 {[%emt 0:00:30]} 20. Rd1 {[%emt 0:00:40]} Rxd1 {[%emt 0:02:20]} 21. Qxd1 {[%emt 0:00:15]} Qc7 {[%emt 0:00:30]} 22. Nf3 {[%emt 1:01:54]} Bxa3 {[%emt 0:45:22]} 23. Nxb5 axb5 {[%emt 0:00:30]} 24. bxa3 {[%emt 0:01:00]} Qc6 25. Qd8+ {[%emt 0:00:30]} Kh7 {[%emt 0:01:00]} 26. Qd3+ {[%emt 0:00:30]} g6 {[%emt 0:00:30]} 1/2-1/2

[Event "36th German Seniors-ch-65 2024"]
[Site "Bad Wildungen"]
[Date "2024.08.28"]
[Round "6.8"]
[White "Okrajek, Alexander"]
[Black "Matthey, Harald"]
[Result "1/2-1/2"]
[ECO "A47"]
[WhiteElo "2172"]
[BlackElo "2062"]
[Annotator "RC"]
[PlyCount "41"]
[EventDate "2024.08.22"]
[EventType "swiss"]
[EventCountry "GER"]
[SourceTitle "playchess.com"]
[Source "ChessBase"]
[SourceQuality "1"]
[TimeControl "40/5400+30:1800+30"]

1. d4 {[%emt 0:00:18]} c5 {[%emt 0:00:20]} 2. e3 {[%emt 0:00:34]} Nf6 {[%emt 0:00:56]} 3. Nf3 {[%emt 0:00:07]} g6 {[%emt 0:01:51]} 4. Nbd2 {[%emt 0:04:11]} b6 {[%emt 0:08:33]} 5. c3 {[%emt 0:02:25]} Bb7 {[%emt 0:02:32]} 6. Bd3 {[%emt 0:01:31]} Bg7 {[%emt 0:01:26]} 7. O-O {[%emt 0:00:45]} O-O {[%emt 0:00:33]} 8. b4 {[%emt 0:06:18]} d6 {[%emt 0:06:48]} 9. bxc5 {[%emt 0:04:13]} dxc5 {[%emt 0:03:17]} 10. Qe2 {[%emt 0:02:39]} Nd5 {[%emt 0:07:16]} 11. Bb2 {[%emt 0:03:00]} cxd4 {[%emt 0:07:24]} 12. cxd4 {[%emt 0:00:16]} Nb4 {[%emt 0:05:15]} 13. Bc4 {[%emt 0:04:36]} N8c6 {[%emt 0:01:51]} 14. a3 {[%emt 0:03:48]} Nd5 {[%emt 0:00:09]} 15. Rac1 {[%emt 0:02:19]} Rc8 {[%emt 0:01:56]} 16. Ba6 {[%emt 0:02:04]} Qd7 {[%emt 0:07:34]} 17. h3 {[%emt 0:03:35]} Rfd8 {[%emt 0:09:37]} 18. Bxb7 {[%emt 0:05:27]} Qxb7 {[%emt 0:00:04]} 19. Rc2 {[%emt 0:51:54]} Nxd4 {[%emt 0:32:38]} 20. Nxd4 {[%emt 0:00:30]} Rxc2 {[%emt 0:00:30]} 21. N4f3 {[%emt 0:00:30]} 1/2-1/2